[Event "4NCL 2022-2023"]
[Site "Daventry"]
[Date "2023.03.19"]
[Round "8.9"]
[White "Roberson, Peter T"]
[Black "Rowson, Jonathan"]
[Result "1/2-1/2"]
[ECO "C84"]
[WhiteElo "2426"]
[BlackElo "2547"]
[Annotator "TA"]
[PlyCount "94"]
[EventDate "2022.10.20"]
[EventType "team-tourn"]
[EventCountry "ENG"]
[SourceTitle "playchess.com"]
[Source "ChessBase"]
[SourceQuality "1"]
[TimeControl "40/6000+30:2400+30"]

{[%evp 17,94,30,33,28,23,27,32,31,18,10,24,24,22,27,64,60,61,11,52,39,56,50,56,59,79,68,86,87,87,72,98,93,97,87,95,45,34,17,22,20,27,26,25,26,45,0,0,0,0,0,0,0,0,0,0,0,0,0,8,0,0,-8,-8,0,0,0,0,0,0,0,0,0,0,0,0,0,0,0,0]} 1. e4 {[%emt 0:00:03] Erenburg,Sergey} e5 {[%emt 0:09:31]} 2. Nf3 {[%emt 0:00:22]} Nc6 {[%emt 0:00:05]} 3. Bb5 {[%emt 0:02:12]} a6 {[%emt 0:00:36]} 4. Ba4 {[%emt 0:00:06]} Nf6 {[%emt 0:02:06]} 5. O-O {[%emt 0:04:29]} Be7 {[%emt 0:00:54]} 6. d3 {[%emt 0:02:04]} d6 {[%emt 0:02:45]} 7. c3 {[%emt 0:00:45]} O-O {[%emt 0:00:41]} 8. Re1 {[%emt 0:03:58]} b5 {[%emt 0:02:20] 8...Re8 is the modern continuation.} 9. Bc2 {[%emt 0:01:03]} d5 {[%emt 0:07:13]} 10. Nbd2 {[%emt 0:00:33] C84: Closed Ruy Lopez: Unusual White 6th moves.} dxe4 {[%emt 0:01:52]} 11. dxe4 {[%emt 0:00:38]} Be6 {[%emt 0:00:35]} 12. a4 {[%emt 0:06:42] White is slightly better. has lost popularity (12.Qe2).} b4 {[%emt 0:05:15] [#]} 13. a5 $146 {[%emt 0:09:49]} ({Predecessor:} 13. Qe2 Qc8 14. Nc4 Nd7 15. a5 f6 16. Ne3 b3 17. Bb1 Bd6 18. Nd5 Bxd5 19. exd5 {1-0 Movsesian,S (2698)-Almasi,Z (2713) Olympiad-40 Istanbul 2012 (11.2)}) 13... bxc3 {[%emt 0:04:43]} 14. bxc3 {[%emt 0:00:40]} Bd6 {[%emt 0:02:48]} 15. Qe2 {[%emt 0:11:15]} Qe7 {[%emt 0:01:39]} 16. Nc4 {[%emt 0:05:14][%cal Bd2c4,Bc4e3,Be3d5][%mdl 32]} Rfb8 {[%emt 0:12:58]} 17. h3 {[%emt 0:08:53]} (17. Bg5 $14) 17... h6 {[%emt 0:08:24]} 18. Nh4 {[%emt 0:07:38]} Bc5 {[%emt 0:10:43][%cal Of6g4]} 19. Nf5 {[%emt 0:04:07]} Qf8 {[%emt 0:00:09]} 20. Nce3 {[%emt 0:08:28]} Kh8 {[%emt 0:06:20]} 21. Qf3 {[%emt 0:06:52][%cal Of5h6]} Ng8 {[%emt 0:05:30]} 22. Nd5 {[%emt 0:02:40]} Ra7 {[%emt 0:00:14]} 23. Qg3 {[%emt 0:02:03]} f6 {[%emt 0:03:01]} 24. Be3 {[%emt 0:06:01]} Bxe3 {[%emt 0:02:45]} 25. Qxe3 {[%emt 0:03:19] [#] Hoping for Ba4.} ({Don't do} 25. Rxe3 Bxf5 26. exf5 Rb2 $14) ({Much worse is} 25. Nfxe3 $6 Qc5 $11) (25. Ndxe3 Nge7 $11) 25... Rab7 {[%emt 0:00:09]} 26. Reb1 {[%emt 0:05:03] White has more active pieces.} (26. Red1 $16) 26... Rxb1+ $14 {[%emt 0:01:31]} 27. Rxb1 {[%emt 0:00:44]} Rxb1+ {[%emt 0:00:35]} 28. Bxb1 {[%emt 0:00:03]} Qb8 {[%emt 0:01:38]} 29. Bd3 {[%emt 0:01:07] [#] And now Qc5 would win.} Nxa5 {[%emt 0:03:50]} 30. Qc5 {[%emt 0:01:47]} (30. Bxa6 $2 {too greedy.} Bxd5 31. exd5 Qb1+ 32. Kh2 Qxf5 $19) 30... Nb3 {[%emt 0:02:48]} 31. Qxc7 {[%emt 0:02:35]} (31. Qc6 $5 {[%cal Rc6e6]} Bxf5 32. exf5 $14) 31... Qxc7 {[%emt 0:00:19] The position is equal.} 32. Nxc7 {[%emt 0:00:02]} Bxf5 {[%emt 0:00:10]} 33. exf5 {[%emt 0:00:02][%mdl 4096] Endgame KBN-KNN} a5 {[%emt 0:00:07]} 34. Nd5 {[%emt 0:03:50] Prevents Ne7.} h5 {[%emt 0:01:12]} 35. Bc4 {[%emt 0:01:54]} a4 {[%emt 0:04:12]} 36. f3 $1 {[%emt 0:00:35]} h4 {[%emt 0:00:28]} 37. Kf2 {[%emt 0:00:07]} Kh7 {[%emt 0:02:20]} 38. Ke3 {[%emt 0:00:11]} Nc5 {[%emt 0:00:10]} 39. f4 {[%emt 0:01:11]} a3 {[%emt 0:01:17]} 40. Ba2 $1 {[%emt 0:00:41]} g6 {[%emt 0:05:40]} 41. fxe5 {[%emt 0:13:29]} fxe5 {[%emt 0:00:00]} 42. f6 {[%emt 0:06:18] Threatens to win with f7.} Nh6 {[%emt 0:00:00]} 43. Nc7 {[%emt 0:04:50]} g5 {[%emt 0:04:07]} 44. f7 {[%emt 0:02:59]} Kg7 {[%emt 0:01:52]} 45. Nb5 {[%emt 0:01:43]} Nxf7 {[%emt 0:01:57]} 46. Bxf7 {[%emt 0:02:03]} Kxf7 {[%emt 0:00:15]} 47. Nxa3 {[%emt 0:00:02]} Ke6 {[%emt 0:31:32] Weighted Error Value: White=0.07 (flawless) /Black=0.06 (flawless)} 1/2-1/2

[Event "4NCL 2022-2023"]
[Site "Daventry"]
[Date "2023.03.19"]
[Round "8.10"]
[White "Adair, James R"]
[Black "Clarke, Brandon G I"]
[Result "1/2-1/2"]
[ECO "B76"]
[WhiteElo "2449"]
[BlackElo "2475"]
[Annotator "TA"]
[PlyCount "35"]
[EventDate "2022.10.20"]
[EventType "team-tourn"]
[EventCountry "ENG"]
[SourceTitle "playchess.com"]
[Source "ChessBase"]
[SourceQuality "1"]
[TimeControl "40/6000+30:2400+30"]

{[%evp 25,35,45,45,41,43,34,42,0,70,0,32,0]} 1. Nf3 {[%emt 0:13:36]} g6 {[%emt 0:01:01]} 2. e4 {[%emt 0:01:36]} c5 {[%emt 0:00:55]} 3. d4 {[%emt 0:00:30]} cxd4 {[%emt 0:00:04]} 4. Nxd4 {[%emt 0:00:06]} Nf6 {[%emt 0:00:20]} 5. Nc3 {[%emt 0:00:37]} d6 {[%emt 0:00:08]} 6. Be3 {[%emt 0:01:35]} Bg7 {[%emt 0:00:10]} 7. f3 {[%emt 0:00:07]} O-O {[%emt 0:00:07]} 8. Qd2 {[%emt 0:00:06]} Nc6 {[%emt 0:00:07]} 9. O-O-O {[%emt 0:03:54]} d5 {[%emt 0:00:06]} 10. exd5 {[%emt 0:00:15]} Nxd5 {[%emt 0:00:03]} 11. Nxc6 {[%emt 0:00:06]} bxc6 {[%emt 0:00:06]} 12. Bd4 {[%emt 0:00:02]} e5 {[%emt 0:00:08]} 13. Bc5 {[%emt 0:00:06]} Re8 {[%emt 0:00:04]} 14. Ne4 {[%emt 0:07:31] B76: Sicilian Dragon: Yugoslav Attack, 9 g4 and 9 0-0-0.} Qc7 {[%emt 0:00:20] 14...Qc7 scores better than 14...Be6.} 15. Bd6 {[%emt 0:12:50]} Qb6 {[%emt 0:00:08]} 16. Bc5 {[%emt 0:00:07]} Qc7 {[%emt 0:00:47] [#]} 17. Bd6 $146 {[%emt 0:00:06] White is more active.} (17. h4 $5) ({Predecessor:} 17. h4 Rd8 18. h5 f5 19. Ng5 h6 20. Bc4 Bf6 21. Nh3 g5 22. Nf2 Kg7 23. Rhe1 Rb8 24. g4 Nb6 {1-0 Sosa,T (2514)-Martin Gonzalez,A (2314) Barcelona GM 08 2020 (4)}) 17... Qb6 {[%emt 0:05:43]} 18. Bc5 {[%emt 0:00:47] White got outplayed after the opening.   Weighted Error Value: White=0.29 (precise) /Black=0.02 (flawless)} 1/2-1/2

[Event "4NCL 2022-2023"]
[Site "Daventry"]
[Date "2023.03.19"]
[Round "8.11"]
[White "Grieve, Harry"]
[Black "Colovic, Aleksandar"]
[Result "1/2-1/2"]
[ECO "C42"]
[WhiteElo "2442"]
[BlackElo "2440"]
[Annotator "TA"]
[PlyCount "77"]
[EventDate "2022.10.20"]
[EventType "team-tourn"]
[EventCountry "ENG"]
[SourceTitle "playchess.com"]
[Source "ChessBase"]
[SourceQuality "1"]
[TimeControl "40/6000+30:2400+30"]

{[%evp 16,77,52,45,38,39,33,6,15,4,0,1,0,0,0,0,0,0,0,0,0,0,0,0,0,0,0,-5,-7,-12,-8,0,-8,-7,-7,-8,0,0,0,0,14,0,0,0,0,-15,0,0,0,0,0,0,0,0,0,0,135,0,0,0,0,0,0,0]} 1. e4 {[%emt 0:00:01]} e5 {[%emt 0:00:57]} 2. Nf3 {[%emt 0:00:05]} Nf6 {[%emt 0:00:16]} 3. Nxe5 {[%emt 0:00:45]} d6 {[%emt 0:00:10]} 4. Nf3 {[%emt 0:00:03]} Nxe4 {[%emt 0:00:07]} 5. d4 {[%emt 0:00:02]} d5 {[%emt 0:01:11]} 6. Bd3 {[%emt 0:00:05]} Be7 {[%emt 0:00:55]} 7. O-O {[%emt 0:00:34]} Nc6 {[%emt 0:00:08][%cal Bb8c6,Bc6e5,Be5f3][%mdl 32]} 8. Nbd2 {[%emt 0:01:29]} Bf5 $1 {[%emt 0:01:39][%mdl 4] is now more promising than 8...Nxd2.} 9. Re1 {[%emt 0:01:18][%cal Rd2e4]} Nxd2 {[%emt 0:03:06] C42: Petroff Defence: 3 Nxe5 and unusual White 3rd moves.} 10. Qxd2 {[%emt 0:00:24]} ({Reject} 10. Bxf5 Nxf3+ 11. gxf3 (11. Qxf3 Nxd4 12. Qh5 Nxf5 $15) 11... O-O $11) 10... Qd7 {[%emt 0:00:05] [#]} 11. Ne5 $146 {[%emt 0:17:04]} ({Predecessor:} 11. Bxf5 Qxf5 12. Ne5 Nd8 13. Qc3 Ne6 14. Bd2 Bd6 15. Re3 O-O-O 16. Rae1 Bxe5 17. Rxe5 {½-½ Aronian,L (2755)-Dominguez Perez,L (2747) USA-ch Saint Louis 2022 (2)}) 11... Nxe5 {[%emt 0:05:34]} 12. Bxf5 {[%emt 0:00:02]} (12. Rxe5 {simplifies} Bxd3 13. Qxd3 O-O-O 14. Bf4) 12... Nf3+ $1 {[%emt 0:09:44]} 13. gxf3 {[%emt 0:00:02]} Qxf5 {[%emt 0:00:05]} 14. Qb4 {[%emt 0:06:57][%csl Ge1][%cal Rb4e7] [#]} Qg6+ $1 {[%emt 0:05:02]} 15. Kh1 {[%emt 0:02:33][%csl Ge1][%cal Rb4e7]} Qd6 {[%emt 0:12:12]} 16. Qb5+ {[%emt 0:12:16]} Qc6 {[%emt 0:01:27]} 17. Qb4 {[%emt 0:01:35][%csl Ge1][%cal Rb4e7]} Qd6 {[%emt 0:00:05]} 18. Qxb7 {[%emt 0:11:02]} O-O {[%emt 0:00:49] ...Rfb8 is the strong threat.} 19. Qb3 {[%emt 0:00:01]} Rab8 {[%emt 0:05:37]} 20. Qd3 {[%emt 0:01:37]} Qf6 {[%emt 0:00:51]} 21. Rg1 {[%emt 0:02:38]} Qh4 {[%emt 0:06:30] Dodges Bg5} 22. Rg4 {[%emt 0:03:14]} Qh5 {[%emt 0:03:59][%mdl 1024] Black has compensation.} (22... Qxf2 $2 23. Bh6 Bf6 24. Rf1 $18) 23. b3 {[%emt 0:02:48]} Bd6 $1 {[%emt 0:01:14][%csl Gd6][%cal Rh5h2]} 24. Rg2 {[%emt 0:06:59]} Rfe8 {[%emt 0:00:42] ( -> ...Re1+)} 25. Bd2 {[%emt 0:01:24] Against Re1+} Re6 {[%emt 0:02:05]} 26. f4 {[%emt 0:03:22]} c6 {[%emt 0:20:31]} 27. Rag1 {[%emt 0:02:49]} g6 {[%emt 0:00:07]} 28. f3 {[%emt 0:02:52]} Rf6 {[%emt 0:03:13][%cal Ob8e8]} 29. Rg5 {[%emt 0:02:37]} Qh6 {[%emt 0:01:17]} 30. Qe2 {[%emt 0:10:57]} Re6 {[%emt 0:14:34]} 31. Qg2 {[%emt 0:11:16]} Rbe8 {[%emt 0:00:23]} 32. f5 {[%emt 0:00:08]} Re2 {[%emt 0:00:07]} 33. Rxg6+ $1 {[%emt 0:00:04][%mdl 64] [#] Discovered Attack} fxg6 {[%emt 0:02:41]} (33... hxg6 {simplifies} 34. Bxh6 Rxg2 35. Rxg2 Re1+) 34. Bxh6 {[%emt 0:00:13] Threatens to win with Qh3.} Rxg2 {[%emt 0:00:05]} 35. Rxg2 $11 {[%emt 0:00:31] And now Kg1 would win. KRB-KRB} Re1+ {[%emt 0:00:11]} 36. Rg1 {[%emt 0:00:01]} Re2 {[%emt 0:00:05][%csl Gd6,LRc2,LRh2][%cal Re2h2] The position is equal.} 37. Rg2 {[%emt 0:01:15]} (37. fxg6 $2 Rxh2#) 37... Re1+ {[%emt 0:00:05]} 38. Rg1 {[%emt 0:08:27]} Re2 {[%emt 0:00:05][%csl Gd6,LRc2,LRh2][%cal Re2h2]} 39. Rg2 {[%emt 0:00:00] Weighted Error Value: White=0.03 (flawless) /Black=0.01 (flawless)} (39. fxg6 $2 Rxh2#) 1/2-1/2

[Event "4NCL 2022-2023"]
[Site "Daventry"]
[Date "2023.03.19"]
[Round "8.12"]
[White "Emms, John M"]
[Black "Makkar, Rajat"]
[Result "1-0"]
[ECO "B10"]
[WhiteElo "2467"]
[BlackElo "2426"]
[Annotator "TA"]
[PlyCount "51"]
[EventDate "2022.10.20"]
[EventType "team-tourn"]
[EventCountry "ENG"]
[SourceTitle "playchess.com"]
[Source "ChessBase"]
[SourceQuality "1"]
[TimeControl "40/6000+30:2400+30"]

{[%evp 16,51,37,48,97,48,66,46,43,59,56,62,68,69,147,144,175,148,231,231,277,268,395,364,482,475,577,456,717,716,671,560,640,630,631,620,607,599]} 1. c4 {[%emt 0:03:32]} Nf6 {[%emt 0:00:45]} 2. Nc3 {[%emt 0:01:36]} c6 {[%emt 0:02:46]} 3. e4 {[%emt 0:05:53]} d5 {[%emt 0:01:16]} 4. cxd5 {[%emt 0:00:23]} cxd5 {[%emt 0:01:25]} 5. exd5 {[%emt 0:00:06]} g6 {[%emt 0:09:39]} 6. Bc4 {[%emt 0:04:23]} Bg7 {[%emt 0:01:31]} 7. Nf3 {[%emt 0:13:28]} O-O {[%emt 0:06:49]} 8. O-O {[%emt 0:00:03]} a6 {[%emt 0:10:54]} 9. a4 {[%emt 0:08:31]} Qa5 {[%emt 0:06:38] [#] B10: Caro-Kann: 2 d3 and 2 c4.} (9... b5 $14 {is more appropriate.} 10. axb5 Bb7) 10. Qe2 $146 {[%emt 0:08:08]} (10. Ra3 $16) ({Predecessor:} 10. Ra3 Nbd7 11. d3 Nb6 12. Bd2 Qc5 13. Qb3 Nxc4 14. Qxc4 Qd6 15. Bf4 Qd8 16. Bc7 Qd7 17. Rb3 {1-0 Kalogridakis,G (2114)-Markesinis,E (2029) Nikaia op 22nd 2014 (7)}) 10... Bg4 {[%emt 0:05:04]} 11. h3 {[%emt 0:19:40]} Bxf3 {[%emt 0:01:21] White is slightly better.} 12. Qxf3 {[%emt 0:00:03]} ({But not} 12. gxf3 Nbd7 $11) 12... Nbd7 {[%emt 0:01:44]} 13. d4 {[%emt 0:18:44][%cal Od5d6] Inhibits Ne5.} b5 {[%emt 0:04:25]} 14. Bb3 {[%emt 0:00:46][%cal Od5d6]} (14. axb5 $2 {loses.} Qxa1 15. Bf4 Qa5 $19) 14... b4 {[%emt 0:03:52]} (14... Qb4 $14 15. Ra3 Nb6) 15. Ne4 $16 {[%emt 0:00:06]} Rac8 {[%emt 0:18:11]} 16. Nxf6+ {[%emt 0:03:12]} Bxf6 {[%emt 0:06:02]} (16... Nxf6 $16 17. Re1 Qc7) 17. Be3 $18 {[%emt 0:00:21]} Rc7 {[%emt 0:01:03]} 18. Rac1 {[%emt 0:02:04]} Rfc8 {[%emt 0:01:24]} (18... Ra7 $142 19. d6 exd6) 19. Rc6 {[%emt 0:01:24]} Rxc6 {[%emt 0:03:46]} 20. dxc6 {[%emt 0:00:06] White is clearly winning.} Nb8 {[%emt 0:01:18] Black is weak on the light squares} 21. d5 {[%emt 0:01:50]} Bxb2 {[%emt 0:02:37] [#]} (21... Qd8 $142 22. Qg4 Bxb2) 22. d6 $1 {[%emt 0:06:19][%mdl 512]} exd6 {[%emt 0:00:53]} 23. Qxf7+ {[%emt 0:03:03]} Kh8 {[%emt 0:00:02]} 24. Bd5 {[%emt 0:03:21] This pair of bishops is nice.} Qc7 {[%emt 0:04:24]} 25. Qxc7 {[%emt 0:01:34]} Rxc7 {[%emt 0:00:02]} 26. Rb1 {[%emt 0:01:14] White took control after the opening.   Weighted Error Value: White=0.26 (precise) /Black=0.51} 1-0

[Event "4NCL 2022-2023"]
[Site "Daventry"]
[Date "2023.03.19"]
[Round "8.13"]
[White "Moreby, James"]
[Black "Wells, Peter K"]
[Result "1/2-1/2"]
[ECO "A13"]
[WhiteElo "2353"]
[BlackElo "2361"]
[Annotator "TA"]
[PlyCount "34"]
[EventDate "2022.10.20"]
[EventType "team-tourn"]
[EventCountry "ENG"]
[SourceTitle "playchess.com"]
[Source "ChessBase"]
[SourceQuality "1"]
[TimeControl "40/6000+30:2400+30"]

{[%evp 10,21,0,-10,0,3,0,-5,-7,-60,-56,-33,-53,-36]} 1. c4 {[%emt 0:00:02]} e6 {[%emt 0:09:16]} 2. g3 {[%emt 0:00:04]} d5 {[%emt 0:00:16]} 3. Bg2 {[%emt 0:00:02]} Nf6 {[%emt 0:00:14]} 4. Nf3 {[%emt 0:00:05]} dxc4 {[%emt 0:01:03]} 5. Na3 {[%emt 0:00:06]} Bxa3 {[%emt 0:02:42]} 6. bxa3 {[%emt 0:00:02] White is weak on the light squares} b5 {[%emt 0:05:14] A13: English Opening: 1...e6.} 7. Ne5 {[%emt 0:00:26]} Nd5 $1 {[%emt 0:02:49]} ({Don't play} 7... Qd4 8. Rb1 Ne4 9. Ng4 $14) 8. d3 {[%emt 0:09:41]} Qf6 {[%emt 0:42:42]} 9. f4 {[%emt 0:08:03]} (9. Bf4 $11) 9... Nd7 $1 $15 {[%emt 0:06:10]} 10. dxc4 {[%emt 0:35:31]} bxc4 {[%emt 0:00:26]} 11. Bxd5 {[%emt 0:10:41] [#] White did not feel at home in the position after the opening.   Weighted Error Value: White=0.16 (very precise) /Black=0.01 (flawless)} {Predecessor:} exd5 $146 12. Qxd5 Rb8 13. Qxc4 Nxe5 14. fxe5 Qxe5 15. O-O O-O 16. Bf4 Qh5 17. Bxc7 Rb2 {0-1 Milchev,N (2421)-Rusev,K (2516) BUL-ch Panagyurishte 2012 (10)} 1/2-1/2

[Event "4NCL 2022-2023"]
[Site "Daventry"]
[Date "2023.03.19"]
[Round "8.14"]
[White "Camacho Collados, Marcos"]
[Black "Rendle, Thomas E"]
[Result "1-0"]
[ECO "A07"]
[WhiteElo "2460"]
[BlackElo "2380"]
[Annotator "TA"]
[PlyCount "141"]
[EventDate "2022.10.20"]
[EventType "team-tourn"]
[EventCountry "ENG"]
[SourceTitle "playchess.com"]
[Source "ChessBase"]
[SourceQuality "1"]
[TimeControl "40/6000+30:2400+30"]

{[%evp 27,141,-5,0,0,18,17,24,56,53,58,43,-28,-31,-41,-13,-8,-18,-22,0,-67,-16,-12,-12,-41,0,0,0,0,0,0,17,17,17,0,0,2,14,4,63,35,36,40,65,0,0,0,0,0,0,0,22,18,89,0,0,0,64,0,0,-16,0,-69,-66,-73,0,0,0,0,0,0,0,0,0,0,0,0,2,2,6,0,6,2,6,2,6,6,29,7,25,13,52,15,14,30,34,19,342,288,1093,1011,1419,1524,1538,1414,1406,1383,1078,837,12834,12535,12836,12835,12843,12842,12842,12841]} 1. Nf3 {[%emt 0:00:05]} d5 {[%emt 0:00:06]} 2. g3 {[%emt 0:00:40]} g6 {[%emt 0:00:13]} 3. Bg2 {[%emt 0:00:44]} Bg7 {[%emt 0:01:52]} 4. O-O {[%emt 0:03:01]} e5 {[%emt 0:01:39]} 5. d3 {[%emt 0:00:05]} Nc6 {[%emt 0:00:23]} 6. Nbd2 {[%emt 0:01:27]} Nge7 {[%emt 0:04:36]} 7. e4 {[%emt 0:00:32]} O-O {[%emt 0:06:01]} 8. exd5 {[%emt 0:01:58]} Nxd5 {[%emt 0:04:00]} 9. Re1 {[%emt 0:00:07]} Re8 {[%emt 0:03:04]} 10. a4 {[%emt 0:02:09]} a5 {[%emt 0:02:14]} 11. c3 {[%emt 0:01:21]} h6 {[%emt 0:04:18]} 12. Nc4 {[%emt 0:05:38]} Bf5 {[%emt 0:05:20]} 13. Nh4 {[%emt 0:08:33]} Be6 {[%emt 0:01:41]} 14. Nf3 {[%emt 0:12:17]} Bf5 {[%emt 0:00:29]} 15. h3 {[%emt 0:01:11][%cal Bh2h3,Bh3h4][%mdl 32] A07: Réti Opening: New York and Capablanca Systems.} g5 {[%emt 0:04:10]} 16. h4 {[%emt 0:01:30][%cal Rh4g5]} g4 {[%emt 0:08:39]} 17. Nh2 {[%emt 0:03:43] White has an edge.} Qd7 {[%emt 0:05:05]} 18. Be4 {[%emt 0:23:30]} h5 {[%emt 0:14:25] [#]} 19. Bg5 $146 {[%emt 0:01:37]} (19. f3 $1 $14) ({Predecessor:} 19. f3 Nde7 20. fxg4 hxg4 21. h5 Be6 22. h6 Bf8 23. Qd2 f6 24. Rf1 Nd5 25. Qf2 Be7 26. Ne3 Nxe3 27. Bxe3 {½-½ La Candia,J (2313)-Hrvacic,P (2297) IECG CM.2002.0.00205 email}) 19... f6 $11 {[%emt 0:03:44]} 20. Bd2 {[%emt 0:02:11]} Be6 {[%emt 0:02:13]} 21. Bg6 {[%emt 0:02:03][%cal Og6h5]} Bf7 {[%emt 0:04:53]} 22. Bxf7+ {[%emt 0:00:09]} Qxf7 {[%emt 0:00:17]} 23. Qb3 {[%emt 0:07:01] [#]} (23. f3 $1 $11) 23... Nb6 {[%emt 0:04:36]} 24. Be3 {[%emt 0:00:41]} Nxc4 {[%emt 0:01:42]} 25. dxc4 {[%emt 0:00:33]} Ne7 {[%emt 0:03:04]} 26. Rad1 {[%emt 0:02:52][%cal Od1d7]} Nf5 {[%emt 0:05:29]} 27. Qxb7 {[%emt 0:02:49]} Qxc4 {[%emt 0:00:10]} 28. b3 {[%emt 0:00:31]} Qf7 {[%emt 0:01:35]} (28... Qxc3 $2 29. Qd5+ (29. Rc1 Qd3 $11) 29... Kh8 30. Qf7 $18) 29. Bc5 {[%emt 0:04:25]} Bf8 {[%emt 0:05:57]} 30. Bxf8 {[%emt 0:00:27]} Rxf8 {[%emt 0:00:11]} 31. Qc6 {[%emt 0:01:42]} Rad8 {[%emt 0:01:54] Repels Rd7} 32. Nf1 {[%emt 0:00:09]} Rd6 {[%emt 0:02:55]} (32... Qxb3 $2 33. Rxd8 Rxd8 34. Qxf6 $18) (32... Rxd1 33. Rxd1 Qxb3 34. Rd7 $16) (32... Kg7 $1 $11) 33. Qe4 {[%emt 0:00:37]} Rfd8 {[%emt 0:02:15]} (33... Qxb3 $2 34. Qxf5 (34. Rxd6 Nxd6 35. Qg6+ Kh8 $18) 34... Qf7 35. Rxd6 cxd6 36. Rb1 $18) 34. Rxd6 {[%emt 0:00:49]} Nxd6 {[%emt 0:00:02]} 35. Qd3 {[%emt 0:00:34]} (35. Qc6 $14) 35... Rb8 {[%emt 0:00:29]} 36. c4 {[%emt 0:00:29]} Qh7 {[%emt 0:00:43]} 37. Qd5+ {[%emt 0:01:54]} Qf7 {[%emt 0:00:18]} 38. Qxa5 {[%emt 0:03:43]} Nf5 {[%emt 0:02:22]} 39. Nd2 {[%emt 0:10:17]} Nd4 {[%emt 0:00:12] [#]} (39... Kg7 $11 {remains equal.}) 40. Qc5 {[%emt 0:02:06]} (40. b4 $1 $16) 40... Rd8 {[%emt 0:03:56][%cal Bb8d8,Bd8d1,Bd1a1][%mdl 32]} 41. a5 {[%emt 0:42:32]} Nc2 {[%emt 0:07:02]} ({Black should try} 41... Qh7 $1 $11 42. Ne4 Nf3+ 43. Kf1 Qf5) 42. Re2 {[%emt 0:00:00]} ({Better is} 42. Rd1 $14) 42... Nd4 {[%emt 0:02:06]} 43. Re3 {[%emt 0:00:00]} Nf5 {[%emt 0:02:37][%mdl 1024] Black has compensation.} (43... Qd7 {simplifies} 44. Qd5+ Qxd5 45. cxd5 Rxd5 46. Nc4 Rd8) 44. Nf1 {[%emt 0:00:00]} (44. Re2 $11) 44... Rd1 $1 $15 {[%emt 0:08:26]} 45. Rc3 {[%emt 0:00:00] [#]} Nd4 {[%emt 0:12:25]} (45... Qd7 $1 $17 {And now ...Nd4 would win.} 46. a6 Qd8) 46. Kg2 $1 $11 {[%emt 0:00:00]} Nf3 {[%emt 0:00:11]} 47. Qc6 {[%emt 0:00:00]} Ra1 {[%emt 0:07:18]} 48. Rxf3 {[%emt 0:00:00]} gxf3+ {[%emt 0:00:07]} 49. Qxf3 {[%emt 0:00:00]} Rxa5 {[%emt 0:00:17][%mdl 4096] Endgame KQR-KQN} 50. Ne3 {[%emt 0:00:00]} Ra6 {[%emt 0:04:02][%cal Of6f5]} 51. Nf5 {[%emt 0:00:00]} Kh8 {[%emt 0:00:36]} 52. b4 {[%emt 0:00:00]} Ra4 {[%emt 0:00:23]} (52... Qxc4 53. Qxh5+ Kg8 54. Qg6+ Kf8 55. Qg7+ Ke8 56. Qe7#) 53. Qb3 {[%emt 0:00:12]} Ra8 {[%emt 0:00:09]} 54. Qd1 {[%emt 0:00:27]} Kh7 {[%emt 0:03:10]} (54... Qxc4 {leads to mate.} 55. Qxh5+ Kg8 56. Qg6+ Kf8 57. Qg7+ Ke8 58. Qe7#) 55. Qd3 {[%emt 0:00:44]} (55. b5 {with more complications.} Ra3 56. Qd8 Rc3 57. Ne3) 55... Kh8 {[%emt 0:00:04]} 56. b5 {[%emt 0:00:56]} Rb8 {[%emt 0:00:53]} 57. Ne3 {[%emt 0:00:26]} (57. c5 $5 {[%cal Rg2g1]}) 57... Rf8 {[%emt 0:00:18]} 58. Qe4 {[%emt 0:00:17]} Qh7 {[%emt 0:00:27]} 59. Qd5 {[%emt 0:00:37]} (59. Qc6 $5 {[%cal Rg2h2]}) 59... Qf7 {[%emt 0:00:02]} 60. Qc6 {[%emt 0:01:02] aiming for Nd5.} Qh7 {[%emt 0:00:37]} 61. Kh2 {[%emt 0:02:24] c5 would be deadly.} (61. c5 $5 {[%cal Rb5b6]}) 61... Qf7 $2 {[%emt 0:01:38][%mdl 8192] Loses the game.} (61... Qg7 $1 $11) 62. Nd5 $18 {[%emt 0:00:37]} f5 $2 {[%emt 0:00:49]} (62... Qg6 63. Nxc7 (63. Qxc7 Ra8 $18) 63... Qf5) 63. Qxc7 {[%emt 0:00:53] White is clearly winning.} ({Not} 63. Nxc7 f4 $11) 63... Qe6 {[%emt 0:00:27]} 64. Qe7 {[%emt 0:00:44]} Qxe7 {[%emt 0:00:39]} 65. Nxe7 {[%emt 0:00:01] White wants to mate with Ng6+. KR-KN} Rf7 {[%emt 0:00:21]} 66. Ng6+ {[%emt 0:00:46]} Kg7 {[%emt 0:00:04]} 67. Nxe5 {[%emt 0:00:03]} Re7 {[%emt 0:00:33]} 68. f4 {[%emt 0:02:00]} Kf6 {[%emt 0:00:10]} 69. b6 {[%emt 0:00:35][%cal Bb5b6,Bb6b7][%mdl 32]} Ke6 {[%emt 0:00:35]} 70. Nc6 {[%emt 0:00:10]} Rd7 {[%emt 0:00:22] [#]} 71. b7 $1 {[%emt 0:00:04][%mdl 64] Decoy.   Weighted Error Value: White=0.13 (very precise) /Black=0.14 (very precise)} 1-0